bitfinex/quotes_BTCUSD_20250615
["timestamp","ask_amount","ask_price","bid_price","bid_amount"]
[1750014594886,1.19239179,105730.0,105720.0,0.19705939]
[1750014594887,1.19235179,105730.0,105720.0,0.19705939]
[1750014595116,1.19235179,105730.0,105720.0,0.19705893]
[1750014595346,1.19235179,105730.0,105720.0,0.17932084]
[1750014595559,1.19235179,105730.0,105720.0,0.19705943]
[1750014595779,1.19235179,105730.0,105720.0,0.19705941]
[1750014596034,1.19235179,105730.0,105720.0,0.19705836]
[1750014596239,1.19235179,105730.0,105720.0,0.17932084]
[1750014596450,1.19235179,105730.0,105720.0,0.19705944]
[1750014596696,1.19235179,105730.0,105720.0,0.19705929]
[1750014596913,1.19235179,105730.0,105720.0,0.19705946]
[1750014597126,1.19235179,105730.0,105720.0,0.17932084]
[1750014597367,1.19235179,105730.0,105720.0,0.19705927]
[1750014597576,1.19235179,105730.0,105720.0,0.197059]
[1750014597787,1.19235179,105730.0,105720.0,0.19705913]
[1750014598007,1.19235179,105730.0,105720.0,0.19705912]
[1750014598420,1.19235179,105730.0,105720.0,0.19705937]
[1750014598845,1.18289383,105730.0,105720.0,0.19705929]
[1750014599055,1.18289383,105730.0,105720.0,0.19705935]
[1750014599281,1.18289383,105730.0,105720.0,0.19705919]
[1750014599703,1.18289383,105730.0,105720.0,0.19705918]
[1750014599948,1.18289383,105730.0,105720.0,0.17932084]
[1750014600155,1.18289383,105730.0,105720.0,0.19705945]
[1750014600369,1.18289383,105730.0,105720.0,0.19705934]
[1750014600598,1.18289383,105730.0,105720.0,0.19705931]
[1750014600801,1.18289383,105730.0,105720.0,0.19705928]
[1750014601002,1.18289383,105730.0,105720.0,0.19705948]
[1750014601209,1.18289383,105730.0,105720.0,0.19705935]
[1750014601370,1.18289383,105730.0,105720.0,0.1970593]
[1750014601573,1.18289383,105730.0,105720.0,0.19705929]
[1750014601776,0.57781912,105730.0,105720.0,0.19705929]
[1750014602002,1.18289383,105730.0,105720.0,0.17932084]
[1750014602196,1.18289383,105730.0,105720.0,0.19705929]
[1750014602450,1.18289383,105730.0,105720.0,0.19705926]
[1750014602659,1.18289383,105730.0,105720.0,0.19705922]
[1750014602863,0.66319036,105730.0,105720.0,0.19705922]
[1750014603159,0.97344715,105730.0,105720.0,0.19705737]
[1750014603370,0.97344715,105730.0,105720.0,0.19705698]
[1750014603586,0.97344715,105730.0,105720.0,0.19705645]
[1750014603808,0.95453195,105730.0,105720.0,0.17932084]
[1750014604010,0.97344688,105730.0,105720.0,0.19705647]
[1750014604220,0.98290457,105730.0,105720.0,0.19705617]
[1750014604454,0.98290511,105730.0,105720.0,0.17932084]
[1750014604653,0.99236307,105730.0,105720.0,0.17932084]
[1750014604889,0.98290511,105730.0,105720.0,0.17932084]
[1750014605104,0.96398964,105730.0,105720.0,0.19705523]
[1750014605315,0.96398964,105730.0,105720.0,0.19705521]
[1750014605522,0.96398955,105730.0,105720.0,0.17932084]
[1750014605788,0.96398955,105730.0,105720.0,0.19705413]
[1750014605993,0.95453204,105730.0,105720.0,0.39569165]
[1750014606207,0.95453204,105730.0,105720.0,0.37795874]
[1750014606414,0.35891484,105730.0,105720.0,0.40515055]
[1750014606623,0.95453195,105730.0,105720.0,0.4146093]
[1750014606831,0.95453195,105730.0,105720.0,0.42401817]
[1750014607042,0.96398928,105730.0,105720.0,0.41455957]
[1750014607248,0.96398928,105730.0,105720.0,0.39687635]
[1750014607458,0.96398928,105730.0,105720.0,0.40633502]
[1750014607692,0.96398928,105730.0,105720.0,0.38741759]
[1750014608346,0.34945724,105730.0,105720.0,0.39687626]
[1750014608766,0.95453195,105730.0,105720.0,0.39687635]
[1750014608988,0.96398937,105730.0,105720.0,0.39687635]
[1750014609219,0.96398937,105730.0,105720.0,0.38741759]
[1750014609436,0.96398937,105730.0,105720.0,0.18877978]
[1750014609666,0.96398937,105730.0,105720.0,0.38978195]
[1750014609875,0.96398937,105730.0,105720.0,0.38741759]
[1750014610087,0.94776456,105730.0,105720.0,0.38741759]
[1750014610293,0.94776456,105730.0,105720.0,0.39687626]
[1750014610710,0.93830732,105730.0,105720.0,0.40633485]
[1750014610942,0.94776465,105730.0,105720.0,0.39687626]
[1750014611348,0.94776456,105730.0,105720.0,0.39687626]
[1750014611981,0.93830732,105730.0,105720.0,0.40633502]
[1750014612442,0.93830732,105730.0,105720.0,0.41579361]
[1750014612643,0.93830732,105730.0,105720.0,0.41579317]
[1750014612867,0.00945554,105750.0,105740.0,0.0659]
[1750014613078,0.63344143,105750.0,105740.0,0.19190323]
[1750014613287,0.96398571,105750.0,105740.0,0.19899655]
[1750014613731,0.97344143,105750.0,105740.0,0.19899655]
[1750014614152,0.97344143,105750.0,105740.0,0.1895394]
[1750014614361,0.97344143,105750.0,105740.0,0.19899655]
[1750014614580,0.95453017,105750.0,105740.0,0.38813973]
[1750014614794,0.97344161,105750.0,105740.0,0.21672387]
[1750014615010,0.97344161,105750.0,105740.0,0.1895394]
[1750014615251,0.97344161,105750.0,105740.0,0.4153239]
[1750014615252,0.34,105750.0,105740.0,0.4153239]
[1750014615472,0.94507471,105750.0,105740.0,0.37868258]
[1750014615713,0.96398589,105750.0,105740.0,0.2356934]
[1750014615916,0.9734417,105750.0,105740.0,0.38869386]
[1750014616387,0.9734417,105750.0,105740.0,0.19056976]
[1750014616590,0.97344179,105750.0,105740.0,0.36233632]
[1750014616999,0.97344179,105750.0,105740.0,0.3623367]
[1750014617206,0.97344179,105750.0,105740.0,0.34460976]
[1750014617391,0.97344179,105750.0,105740.0,0.20929661]
[1750014617636,0.9734417,105750.0,105740.0,0.36233785]
[1750014617843,0.96398589,105750.0,105740.0,0.56093942]
[1750014618052,0.34945546,105750.0,105740.0,0.54321009]
[1750014618269,0.96398589,105750.0,105740.0,0.56093958]
[1750014618691,0.96398589,105750.0,105740.0,0.36233938]
[1750014619104,0.98289769,105750.0,105740.0,0.36233946]
[1750014619284,0.98289769,105750.0,105740.0,0.34460976]
[1750014619527,0.98289769,105750.0,105740.0,0.36233996]
[1750014619944,0.98289769,105750.0,105740.0,0.36234018]
[1750014620148,0.98289769,105750.0,105740.0,0.36234022]
[1750014620353,0.98289769,105750.0,105740.0,0.36234036]
[1750014620529,0.9734417,105750.0,105740.0,0.36234008]
[1750014620765,0.9734417,105750.0,105740.0,0.34460976]
[1750014620972,0.99235377,105750.0,105740.0,0.34460976]
[1750014621147,0.99235368,105750.0,105740.0,0.36234014]
[1750014621399,0.9828976,105750.0,105740.0,0.36234009]
[1750014621602,0.9828976,105750.0,105740.0,0.36233998]
[1750014621780,0.99235368,105750.0,105740.0,0.36233997]
[1750014622036,0.99235368,105750.0,105740.0,0.20929997]
[1750014622237,0.98289822,105750.0,105740.0,0.34456976]
[1750014622441,1.58797293,105750.0,105740.0,0.36229971]
[1750014622646,1.58797293,105750.0,105740.0,0.34456976]
[1750014622855,1.58797293,105750.0,105740.0,0.36229989]
[1750014623029,1.58797293,105750.0,105740.0,0.34456976]
[1750014623276,1.58797293,105750.0,105740.0,0.36229936]
[1750014623484,1.59742919,105750.0,105740.0,0.36229955]
[1750014623690,1.58797302,105750.0,105740.0,0.36229967]
[1750014623896,1.58797302,105750.0,105740.0,0.36229942]
[1750014624074,1.58797302,105750.0,105740.0,0.36229921]
[1750014624380,1.58797302,105750.0,105740.0,0.36229926]
[1750014624591,1.57851685,105750.0,105740.0,0.34456976]
[1750014624840,1.58797302,105750.0,105740.0,0.34456976]
[1750014625050,1.58797302,105750.0,105740.0,0.36229918]
[1750014625254,1.58797302,105750.0,105740.0,0.36229919]
[1750014625457,1.78655457,105750.0,105740.0,0.36229923]
[1750014625665,1.78655457,105750.0,105740.0,0.34456976]
[1750014625880,1.75818714,105750.0,105740.0,0.26797274]
[1750014626109,1.75818714,105750.0,105740.0,0.26797418]
[1750014626319,1.78848714,105750.0,105740.0,0.25024176]
[1750014626527,1.81898714,105750.0,105740.0,0.26797455]
[1750014626749,1.81898714,105750.0,105740.0,0.26797477]
[1750014626955,1.81898714,105750.0,105740.0,0.26797484]
[1750014627164,1.78848714,105750.0,105740.0,0.26797513]
[1750014627401,1.78848714,105750.0,105740.0,0.26797516]
[1750014627608,1.78848714,105750.0,105740.0,0.25024176]
[1750014628048,1.78848714,105750.0,105740.0,0.26797523]
[1750014628256,1.78848714,105750.0,105740.0,0.26797506]
[1750014628477,1.78848714,105750.0,105740.0,0.25024176]
[1750014628903,1.78848714,105750.0,105740.0,0.29640511]
[1750014629083,1.80953097,105750.0,105740.0,0.29640511]
[1750014629285,1.80953097,105750.0,105740.0,0.29640516]
[1750014629429,1.80953097,105750.0,105740.0,0.29606293]
[1750014629646,1.80953097,105750.0,105740.0,0.29606295]
[1750014629849,1.80953097,105750.0,105740.0,0.296063]
[1750014630307,1.80953097,105750.0,105740.0,0.29606294]
[1750014630641,1.80953097,105750.0,105740.0,0.27828956]
[1750014631054,1.80953097,105750.0,105740.0,0.29602282]
[1750014631316,1.80953097,105750.0,105740.0,0.04716342]
[1750014631516,1.90568019,105750.0,105740.0,0.01873407]
[1750014631727,6.23185556,105750.0,105740.0,0.001]
[1750014631939,6.83693055,105750.0,105740.0,0.01873906]
[1750014632145,6.23185598,105750.0,105740.0,0.001]
[1750014632398,6.83693069,105750.0,105740.0,0.001]
[1750014632602,6.8762508,105750.0,105740.0,0.01874038]
[1750014632812,6.8762508,105750.0,105740.0,0.001]
[1750014633019,6.8762508,105750.0,105740.0,0.01874109]
[1750014633203,6.8673709,105750.0,105740.0,0.0187411]
[1750014633443,6.27117624,105750.0,105740.0,0.0187411]
[1750014633657,6.17502702,105750.0,105740.0,0.001]
[1750014634084,6.16614697,105750.0,105740.0,0.0187407]
[1750014634295,6.17502267,105750.0,105740.0,0.01873094]
[1750014634529,6.17502263,105750.0,105740.0,0.01873126]
[1750014634742,6.17502268,105750.0,105740.0,0.01873156]
[1750014634991,5.50253497,105750.0,105740.0,0.01873127]
[1750014635201,5.50253495,105750.0,105740.0,0.001]
[1750014635410,5.50253495,105750.0,105740.0,0.01873124]
[1750014635629,5.50253505,105750.0,105740.0,0.001]
[1750014636047,5.50253515,105750.0,105740.0,0.001]
[1750014636507,5.49365934,105750.0,105740.0,0.001]
[1750014636718,5.50253515,105750.0,105740.0,0.001]
[1750014636934,5.50253917,105750.0,105740.0,0.001]
[1750014637145,5.58980856,105750.0,105740.0,0.001]
[1750014637596,5.50253918,105750.0,105740.0,0.001]
[1750014637804,5.50253917,105750.0,105740.0,0.001]
[1750014638015,5.49365934,105750.0,105740.0,0.001]
[1750014638254,5.50253917,105750.0,105740.0,0.001]
[1750014638896,5.49365934,105750.0,105740.0,0.001]
[1750014639313,5.50253917,105750.0,105740.0,0.001]
[1750014639726,5.50253915,105750.0,105740.0,0.001]
[1750014639931,5.50257915,105750.0,105740.0,0.001]
[1750014640136,5.50257917,105750.0,105740.0,0.001]
[1750014640363,5.50257914,105750.0,105740.0,0.001]
[1750014640995,5.49369934,105750.0,105740.0,0.0187398]
[1750014641202,5.50257914,105750.0,105740.0,0.001]
[1750014641431,5.49369934,105750.0,105740.0,0.01873984]
[1750014641641,5.49369934,105750.0,105740.0,0.001]
[1750014641845,5.50257902,105750.0,105740.0,0.001]
[1750014642049,5.50257903,105750.0,105740.0,0.01873937]
[1750014642271,5.49369934,105750.0,105740.0,0.001]
[1750014642474,5.50257904,105750.0,105740.0,0.01873938]
[1750014642686,5.50257901,105750.0,105740.0,0.01873904]
[1750014642922,5.47199898,105750.0,105740.0,0.01873889]
[1750014643130,5.44169898,105750.0,105740.0,0.001]
[1750014643356,5.44169897,105750.0,105740.0,0.001]
[1750014643784,5.44169897,105750.0,105740.0,0.01873901]
[1750014644040,5.43281934,105750.0,105740.0,0.01873888]
[1750014644248,5.44169897,105750.0,105740.0,0.001]
[1750014644460,5.44169897,105750.0,105740.0,0.01873845]
[1750014644461,5.47229889,105750.0,105740.0,0.01873845]
[1750014644680,5.50469892,105750.0,105740.0,0.001]
[1750014644894,5.49581934,105750.0,105740.0,0.0187386]
[1750014645072,5.49581934,105750.0,105740.0,0.01873858]
[1750014645279,5.49581934,105750.0,105740.0,0.001]
[1750014645485,5.50469891,105750.0,105740.0,0.0187387]
[1750014645693,5.50469891,105750.0,105740.0,0.001]
[1750014645921,5.504699,105750.0,105740.0,0.001]
[1750014646112,5.50469899,105750.0,105740.0,0.001]
[1750014646317,5.50469899,105750.0,105740.0,0.01873894]
[1750014646524,5.50469899,105750.0,105740.0,0.01873895]
[1750014646729,5.50469899,105750.0,105740.0,0.001]
[1750014646933,5.59196856,105750.0,105740.0,0.01873907]
[1750014647142,5.50469899,105750.0,105740.0,0.001]
[1750014647564,5.49581934,105750.0,105740.0,0.001]
[1750014648214,5.49581934,105750.0,105740.0,0.0187392]
[1750014648636,5.50469899,105750.0,105740.0,0.01873913]
[1750014648846,5.49581934,105750.0,105740.0,0.01873875]
[1750014649051,5.49581934,105750.0,105740.0,0.001]
[1750014649252,5.50469891,105750.0,105740.0,0.001]
[1750014649456,5.50469891,105750.0,105740.0,0.01873874]
[1750014649628,5.49581934,105750.0,105740.0,0.001]
[1750014649863,5.50469894,105750.0,105740.0,0.01873868]
[1750014650316,5.49581934,105750.0,105740.0,0.01873905]
[1750014650527,5.50469898,105750.0,105740.0,0.01873876]
[1750014650734,5.50469898,105750.0,105740.0,0.01873885]
[1750014650944,5.49581934,105750.0,105740.0,0.01873885]
[1750014651161,5.60084819,105750.0,105740.0,0.001]
[1750014651368,5.60084827,105750.0,105740.0,0.01873916]
[1750014651580,5.50469904,105750.0,105740.0,0.01873948]
[1750014651820,5.50469907,105750.0,105740.0,0.001]
[1750014652023,5.5046991,105750.0,105740.0,0.01873969]
[1750014652232,5.49581934,105750.0,105740.0,0.01873975]
[1750014652437,5.50469911,105750.0,105740.0,0.01873975]
[1750014652620,5.60084833,105750.0,105740.0,0.01873988]
[1750014652849,5.59196856,105750.0,105740.0,0.01874004]
[1750014653257,5.59196856,105750.0,105740.0,0.01874112]
[1750014653465,5.59196856,105750.0,105740.0,0.001]
[1750014653907,5.59196856,105750.0,105740.0,0.0187411]
[1750014654131,5.59196856,105750.0,105740.0,0.001]
[1750014654350,5.59196856,105750.0,105740.0,0.01874105]
[1750014654566,5.59196856,105750.0,105740.0,0.001]
[1750014654801,5.59196856,105750.0,105740.0,0.01874108]
[1750014655018,5.59196856,105750.0,105740.0,0.01874109]
[1750014655201,5.59196856,105750.0,105740.0,0.001]
[1750014655850,5.59196856,105750.0,105740.0,0.01874004]
[1750014656475,5.59196856,105750.0,105740.0,0.01874002]
[1750014656704,5.59196856,105750.0,105740.0,0.001]
[1750014656932,5.59196856,105750.0,105740.0,0.01874]
[1750014657140,5.59196856,105750.0,105740.0,0.01873996]
[1750014657597,5.59196856,105750.0,105740.0,0.001]
[1750014658038,5.59196856,105750.0,105740.0,0.01874]
[1750014658295,5.59196856,105750.0,105740.0,0.001]
[1750014658725,5.59196856,105750.0,105740.0,0.01874002]
[1750014658934,5.59196856,105750.0,105740.0,0.001]
[1750014659394,5.59196856,105750.0,105740.0,0.01873999]
[1750014659614,5.59180856,105750.0,105740.0,0.01873999]
[1750014659847,5.59180856,105750.0,105740.0,0.001]
[1750014660227,5.59180856,105750.0,105740.0,0.01874003]
[1750014660447,5.59180856,105750.0,105740.0,0.01874006]
[1750014660655,5.59180856,105750.0,105740.0,0.01874003]
[1750014660799,5.59180856,105750.0,105740.0,0.01874005]
[1750014660996,5.59180856,105750.0,105740.0,0.01874029]
[1750014661642,5.59180856,105750.0,105740.0,0.001]
[1750014661880,5.59180856,105750.0,105740.0,0.01873997]
[1750014662092,5.59180856,105750.0,105740.0,0.01874009]
[1750014662298,5.59180856,105750.0,105740.0,0.01874001]
[1750014662509,5.59180856,105750.0,105740.0,0.01874016]
[1750014662939,6.26403329,105750.0,105740.0,0.01874016]
[1750014663125,6.26403329,105750.0,105740.0,0.001]
[1750014663364,6.26403329,105750.0,105740.0,0.01874009]
[1750014663570,6.26403329,105750.0,105740.0,0.001]
[1750014663971,6.26403329,105750.0,105740.0,0.01774006]
[1750014664179,0.21753414,105730.0,105720.0,0.09087707]
[1750014664389,0.8224774,105730.0,105720.0,0.2048603]
[1750014664601,0.8224774,105730.0,105720.0,0.18711883]
[1750014664810,0.8224774,105730.0,105720.0,0.20486029]
[1750014665053,0.8224774,105730.0,105720.0,0.18711883]
[1750014665269,0.8224774,105730.0,105720.0,0.20486026]
[1750014665703,0.8224774,105730.0,105720.0,0.18711883]
[1750014665926,0.8224774,105730.0,105720.0,0.20486008]
[1750014666180,0.8224774,105730.0,105720.0,0.19011883]
[1750014666388,0.8224774,105730.0,105720.0,0.20786013]
[1750014666596,0.8224774,105730.0,105720.0,0.20786024]
[1750014666841,0.8224774,105730.0,105720.0,0.19011883]
[1750014667060,0.8224774,105730.0,105720.0,0.20786024]
[1750014667263,0.8224774,105730.0,105720.0,0.19311883]
[1750014667501,0.8224774,105730.0,105720.0,0.21085997]
[1750014667729,0.8224774,105730.0,105720.0,0.19311883]
[1750014667960,0.81301998,105730.0,105720.0,0.21086053]
[1750014668189,0.81301998,105730.0,105720.0,0.21086052]
[1750014668411,0.81301998,105730.0,105720.0,0.19311883]
[1750014668622,0.81301998,105730.0,105720.0,0.21086056]
[1750014668856,0.81301998,105730.0,105720.0,0.21086058]
[1750014669191,0.81301998,105730.0,105720.0,0.19311883]
[1750014669447,0.81301998,105730.0,105720.0,0.21086008]
[1750014669650,0.81301998,105730.0,105720.0,0.21086051]
[1750014669855,0.81301998,105730.0,105720.0,0.21086057]
[1750014670055,0.81301998,105730.0,105720.0,0.19311883]
[1750014670254,0.81301998,105730.0,105720.0,0.21086042]
[1750014670648,0.80356229,105730.0,105720.0,0.19311883]
[1750014670855,0.80356229,105730.0,105720.0,0.21086053]
[1750014671076,0.80356229,105730.0,105720.0,0.21086055]
[1750014671536,0.80356229,105730.0,105720.0,0.19311883]
[1750014671745,0.80356229,105730.0,105720.0,0.21086041]
[1750014671988,0.80356229,105730.0,105720.0,0.21086038]
[1750014672202,0.80356229,105730.0,105720.0,0.21086039]
[1750014672644,0.80356229,105730.0,105720.0,0.21086037]
[1750014673049,0.79410433,105730.0,105720.0,0.21086056]
[1750014673249,0.79410433,105730.0,105720.0,0.19311883]
[1750014673489,0.79410433,105730.0,105720.0,0.21086069]
[1750014673695,0.79410433,105730.0,105720.0,0.21086067]
[1750014673916,0.79410433,105730.0,105720.0,0.19311883]
[1750014674307,0.79410433,105730.0,105720.0,0.21086215]
[1750014674740,0.79410433,105730.0,105720.0,0.2108624]
[1750014674950,0.79410433,105730.0,105720.0,0.21086249]
[1750014675167,0.79410433,105730.0,105720.0,0.23918001]
[1750014675378,0.81625815,105730.0,105720.0,0.23918018]
[1750014675584,0.81625815,105730.0,105720.0,0.23918027]
[1750014675819,0.81625815,105730.0,105720.0,0.21086269]
[1750014676037,0.81625815,105730.0,105720.0,0.21086274]
[1750014676252,0.79410433,105730.0,105720.0,0.23918029]
[1750014676485,0.79410433,105730.0,105720.0,0.18242889]
[1750014676708,0.79410433,105730.0,105720.0,0.18242885]
[1750014676945,1.13410433,105730.0,105720.0,0.18242893]
[1750014677152,1.13410433,105730.0,105720.0,0.18242904]
[1750014677362,1.13410433,105730.0,105720.0,0.1824291]
[1750014677782,1.13410433,105730.0,105720.0,0.16468383]
[1750014678231,1.13410433,105730.0,105720.0,0.18242885]
[1750014678444,1.13410433,105730.0,105720.0,0.18242879]
[1750014678883,1.23025355,105730.0,105720.0,0.18242894]
[1750014679115,1.23025355,105730.0,105720.0,0.16468383]
[1750014679338,1.13410433,105730.0,105720.0,0.18242894]
[1750014679560,1.73904759,105730.0,105720.0,0.00614207]
[1750014679792,5.93398359,105730.0,105720.0,0.00614207]
[1750014680017,5.93398359,105730.0,105720.0,0.02389204]
[1750014680244,5.93398359,105730.0,105720.0,0.02389214]
[1750014680487,5.93398359,105730.0,105720.0,0.00614207]
[1750014680954,6.12626359,105730.0,105720.0,0.02389214]
[1750014681186,5.93398359,105730.0,105720.0,0.0238921]
[1750014681406,5.97318359,105730.0,105720.0,0.02389208]
[1750014681621,5.97318359,105730.0,105720.0,0.00614207]
[1750014681836,5.97318359,105730.0,105720.0,0.02389213]
[1750014682044,5.97318359,105730.0,105720.0,0.00614207]
[1750014682271,5.97318359,105730.0,105720.0,0.02389207]
[1750014682483,5.97318359,105730.0,105720.0,0.02389208]
[1750014682701,5.97318359,105730.0,105720.0,0.00614207]
[1750014682916,5.93398359,105730.0,105720.0,0.02389289]
[1750014683126,5.94238359,105730.0,105720.0,0.02389354]
[1750014683549,5.94238359,105730.0,105720.0,0.02389582]
[1750014683979,5.94238359,105730.0,105720.0,0.02389598]
[1750014684227,5.94238359,105730.0,105720.0,0.02389599]
[1750014684442,5.97528359,105730.0,105720.0,0.02389599]
[1750014684659,5.97528359,105730.0,105720.0,0.00614207]
[1750014684873,5.97528359,105730.0,105720.0,0.02389598]
[1750014685101,5.97528359,105730.0,105720.0,0.02389592]
[1750014685752,5.97528359,105730.0,105720.0,0.02389594]
[1750014686210,5.97528359,105730.0,105720.0,0.02389601]
[1750014686411,5.97528359,105730.0,105720.0,0.00614207]
[1750014686617,5.97528359,105730.0,105720.0,0.02389603]
[1750014686821,5.97528359,105730.0,105720.0,0.02389594]
[1750014687037,5.97528359,105730.0,105720.0,0.02389599]
[1750014687262,5.97528359,105730.0,105720.0,0.02389605]
[1750014687477,5.97528359,105730.0,105720.0,0.023896]
[1750014688140,5.97528359,105730.0,105720.0,0.02389609]
[1750014688357,5.97528359,105730.0,105720.0,0.02389603]
[1750014688872,5.97528359,105730.0,105720.0,0.02389596]
[1750014688873,5.94238359,105730.0,105720.0,0.02389601]
[1750014689136,4.69329707,105730.0,105720.0,0.01504167]
[1750014689388,1.77824759,105730.0,105720.0,0.06379398]
[1750014689613,1.77824759,105730.0,105720.0,0.06379364]
[1750014689839,1.77824759,105730.0,105720.0,0.06379333]
[1750014690073,1.77824759,105730.0,105720.0,0.06379325]
[1750014690295,1.77824759,105730.0,105720.0,0.04604167]
[1750014690516,1.77824759,105730.0,105720.0,0.06379315]
[1750014690738,1.77824759,105730.0,105720.0,0.06379311]
[1750014690965,1.77824759,105730.0,105720.0,0.04604167]
[1750014691663,1.77824759,105730.0,105720.0,0.06379321]
[1750014691887,1.77824759,105730.0,105720.0,0.04604167]
[1750014692127,1.13410433,105730.0,105720.0,0.07674167]
[1750014692371,1.19221998,105730.0,105720.0,0.09449298]
[1750014692621,1.19221998,105730.0,105720.0,0.09449286]
[1750014692858,1.19221998,105730.0,105720.0,0.19073489]
[1750014693093,1.19221998,105730.0,105720.0,0.19073464]
[1750014693329,1.19221998,105730.0,105720.0,0.19073433]
[1750014693553,1.19221998,105730.0,105720.0,0.19073448]
[1750014693805,1.19221998,105730.0,105720.0,0.19073442]
[1750014694017,1.19221998,105730.0,105720.0,0.19073435]
[1750014694247,1.19221998,105730.0,105720.0,0.19073406]
[1750014694489,1.19221998,105730.0,105720.0,0.19073403]
[1750014694696,1.19221998,105730.0,105720.0,0.19073399]
[1750014695340,1.19221998,105730.0,105720.0,0.17298343]
[1750014695544,1.19221998,105730.0,105720.0,0.19073403]
[1750014695977,1.19221998,105730.0,105720.0,0.19073442]
[1750014696182,1.19221998,105730.0,105720.0,0.19073422]
[1750014696699,1.19221998,105730.0,105720.0,0.17298343]
[1750014696933,1.19221998,105730.0,105720.0,0.16408383]
[1750014697171,1.19221998,105730.0,105720.0,0.18183456]
[1750014697644,1.19221998,105730.0,105720.0,0.18183451]
[1750014697874,1.15301998,105730.0,105720.0,0.18183456]
[1750014698119,1.18276229,105730.0,105720.0,0.16408383]
[1750014698376,1.17330433,105730.0,105720.0,0.16408383]
[1750014698621,1.17330433,105730.0,105720.0,0.18183505]
[1750014698860,1.17330433,105730.0,105720.0,0.1818351]
[1750014699098,1.17330433,105730.0,105720.0,0.16408383]
[1750014699341,1.17330433,105730.0,105720.0,0.18181421]
[1750014699569,1.17330433,105730.0,105720.0,0.1818142]
[1750014699812,1.17330433,105730.0,105720.0,0.16408383]
[1750014700050,1.17330433,105730.0,105720.0,0.18181411]
[1750014700281,1.17330433,105730.0,105720.0,0.16408383]
[1750014700514,1.17330433,105730.0,105720.0,0.18181418]
[1750014700755,1.17330433,105730.0,105720.0,0.16408383]
[1750014701228,1.17330433,105730.0,105720.0,0.18181405]
[1750014701466,1.17330433,105730.0,105720.0,0.16408383]
[1750014701727,1.17330433,105730.0,105720.0,0.18181448]
[1750014701974,1.17330433,105730.0,105720.0,0.18181442]
[1750014702349,1.17330433,105730.0,105720.0,0.16408383]
[1750014703492,1.77824759,105730.0,105720.0,0.16408383]
[1750014712110,1.77824759,105730.0,105720.0,0.13338383]
[1750014714434,1.80351957,105730.0,105720.0,0.00614207]
[1750014714649,1.86681957,105730.0,105720.0,0.00614207]
[1750014715055,1.84154759,105730.0,105720.0,0.00614207]
[1750014715259,1.80994759,105730.0,105720.0,0.00614207]
[1750014715464,1.77824759,105730.0,105720.0,0.00314207]
[1750014716101,1.77824759,105730.0,105720.0,0.00014207]
[1750014716314,1.77824759,105730.0,105720.0,0.00114207]
[1750014717745,1.77824759,105730.0,105720.0,0.00214207]
[1750014730021,1.73904759,105730.0,105720.0,0.03224207]
[1750014730229,1.77812759,105730.0,105720.0,0.03224207]
[1750014738871,1.77812759,105730.0,105720.0,0.00214207]
[1750014770694,1.77812759,105730.0,105720.0,0.03464207]
[1750014772865,1.73904759,105730.0,105720.0,0.03464207]
[1750014773087,1.77808759,105730.0,105720.0,0.03464207]
[1750014776001,1.77808759,105730.0,105720.0,0.00214207]
[1750014781745,1.77808759,105730.0,105720.0,0.03304207]
[1750014783812,1.77808759,105730.0,105720.0,0.06514207]
[1750014784557,1.79700342,105730.0,105720.0,0.06514207]
[1750014786853,1.80646057,105730.0,105720.0,0.16138383]
[1750014787077,1.82537586,105730.0,105720.0,0.16138383]
[1750014787285,1.81591862,105730.0,105720.0,0.16138383]
[1750014788332,1.80623214,105730.0,105720.0,0.16138383]
[1750014790371,1.79677454,105730.0,105720.0,0.12928383]
[1750014792149,1.79677454,105730.0,105720.0,0.14985387]
[1750014792350,1.79677454,105730.0,105720.0,0.12928383]
[1750014795302,1.78731667,105730.0,105720.0,0.09838383]
[1750014805420,1.78731667,105730.0,105720.0,0.13018383]
[1750014810524,0.57743015,105730.0,105720.0,0.13018383]
[1750014810745,1.78731667,105730.0,105720.0,0.13018383]
[1750014814469,1.77785862,105730.0,105720.0,0.13018383]
[1750014816050,1.77785862,105730.0,105720.0,0.09838383]
[1750014821682,1.84005862,105730.0,105720.0,0.00214207]
[1750014823696,1.99285862,105730.0,105720.0,0.00214207]
[1750014835105,1.73881862,105730.0,105720.0,0.00214207]
[1750014835317,1.77785862,105730.0,105720.0,0.00214207]
[1750014846914,5.94199462,105730.0,105720.0,0.00214207]
[1750014847776,1.77785862,105730.0,105720.0,0.00214207]
[1750014854934,1.77785862,105730.0,105720.0,0.03194207]
[1750014856011,1.77781862,105730.0,105720.0,0.03194207]
[1750014856650,0.5289321,105730.0,105720.0,0.03194207]
[1750014856869,1.77781862,105730.0,105720.0,0.03822628]
[1750014857286,1.73881862,105730.0,105720.0,0.03822628]
[1750014857502,1.77781862,105730.0,105720.0,0.03822628]
[1750014865781,1.73881862,105730.0,105720.0,0.03822628]
[1750014866217,1.17287536,105730.0,105720.0,0.06184207]
[1750014866418,1.77781862,105730.0,105720.0,0.06184207]
[1750014874522,1.73881862,105730.0,105720.0,0.06184207]
[1750014874743,1.77781862,105730.0,105720.0,0.06184207]
[1750014878895,1.77781862,105730.0,105720.0,0.03194207]
[1750014887282,1.73881862,105730.0,105720.0,0.03194207]
[1750014887486,1.77781862,105730.0,105720.0,0.03194207]
[1750014889077,0.5679321,105730.0,105720.0,0.03194207]
[1750014889310,1.77781862,105730.0,105720.0,0.03194207]
[1750014898784,1.77781862,105730.0,105720.0,0.03819628]
[1750014900546,1.77781862,105730.0,105720.0,0.03194207]
[1750014902482,0.5679321,105730.0,105720.0,0.03194207]
[1750014902687,1.77781862,105730.0,105720.0,0.03194207]
[1750014903708,1.77781862,105730.0,105720.0,0.06244207]
[1750014904324,1.73881862,105730.0,105720.0,0.06244207]
[1750014904530,0.98254523,105730.0,105720.0,0.16492804]
[1750014904739,1.01208718,105730.0,105720.0,0.16492804]
[1750014905152,0.99317171,105730.0,105720.0,0.16492804]
[1750014905359,1.0026294,105730.0,105720.0,0.16492804]
[1750014905580,1.01208727,105730.0,105720.0,0.16492804]
[1750014905984,1.0026294,105730.0,105720.0,0.18268287]
[1750014906199,0.9636294,105730.0,105720.0,0.16492804]
[1750014906407,1.01208718,105730.0,105720.0,0.18268287]
[1750014906623,1.01208718,105730.0,105720.0,0.18268281]
[1750014906840,1.01208718,105730.0,105720.0,0.17643871]
[1750014907064,1.01208718,105730.0,105720.0,0.17643874]
[1750014907279,1.01208718,105730.0,105720.0,0.17643876]
[1750014907487,1.01208718,105730.0,105720.0,0.17643877]
[1750014907697,1.01208718,105730.0,105720.0,0.15868383]
[1750014907910,1.01208718,105730.0,105720.0,0.17643838]
[1750014908361,1.01208718,105730.0,105720.0,0.17643834]
[1750014908573,1.01208718,105730.0,105720.0,0.15868383]
[1750014909436,1.02154514,105730.0,105720.0,0.15868383]
[1750014909645,1.01208718,105730.0,105720.0,0.17641543]
[1750014909828,1.02154505,105730.0,105720.0,0.15868383]
[1750014910072,1.02154505,105730.0,105720.0,0.17641596]
[1750014910279,1.02154505,105730.0,105720.0,0.17641593]